fUST/lending_fUST_20251006
["ID","MTS","AMOUNT","RATE_DAILY","PERIOD"]
[389570506,1759722649156,-151.0,0.00016438,2]
[389570508,1759722649165,-151.0,0.00016438,2]
[389570510,1759722649174,-151.0,0.00016438,2]
[389570512,1759722649183,-194.872159,0.00016438,2]
[389570514,1759722649191,-151.0,0.00016438,2]
[389570516,1759722649200,-194.872159,0.00016438,2]
[389570518,1759722649209,-151.0,0.00016438,2]
[389570520,1759722649219,-528.11,0.00016438,2]
[389570522,1759722649227,-194.872159,0.00016438,2]
[389570524,1759722649236,-151.0,0.00016438,2]
[389570526,1759722649245,-500.0,0.00016438,2]
[389570528,1759722649254,-194.872159,0.00016438,2]
[389570530,1759722649264,-194.872159,0.00016438,2]
[389570532,1759722649273,-500.0,0.00016438,2]
[389570534,1759722649282,-194.872159,0.00016438,2]
[389570536,1759722649291,-194.872159,0.00016438,2]
[389570538,1759722649299,-151.0,0.00016438,2]
[389570540,1759722649308,-194.872159,0.00016438,2]
[389570542,1759722649317,-151.0,0.00016438,2]
[389570544,1759722649326,-194.872159,0.00016438,2]
[389570546,1759722649335,-151.0,0.00016438,2]
[389570548,1759722649344,-194.872159,0.00016438,2]
[389570549,1759722649354,-151.0,0.00016438,2]
[389570551,1759722649366,-194.872159,0.00016438,2]
[389570553,1759722649375,-151.0,0.00016438,2]
[389570556,1759722649385,-194.872159,0.00016438,2]
[389570558,1759722649394,-151.0,0.00016438,2]
[389570559,1759722649403,-194.872159,0.00016438,2]
[389570561,1759722649412,-151.0,0.00016438,2]
[389570563,1759722649425,-194.872159,0.00016438,2]
[389570565,1759722649434,-151.0,0.00016438,2]
[389570567,1759722649443,-194.872159,0.00016438,2]
[389570569,1759722649452,-151.0,0.00016438,2]
[389570571,1759722649461,-2271.78,0.00016438,2]
[389570573,1759722649469,-151.0,0.00016438,2]
[389570575,1759722649478,-194.872159,0.00016438,2]
[389570577,1759722649487,-151.0,0.00016438,2]
[389570579,1759722649495,-151.0,0.00016438,2]
[389570582,1759722649508,-194.872159,0.00016438,2]
[389570584,1759722649517,-151.0,0.00016438,2]
[389570585,1759722649528,-960.69,0.00016438,2]
[389570588,1759722649537,-151.0,0.00016438,2]
[389570590,1759722649546,-194.872159,0.00016438,2]
[389570592,1759722649556,-151.0,0.00016438,2]
[389570594,1759722649565,-151.0,0.00016438,2]
[389570596,1759722649574,-194.872159,0.00016438,2]
[389570598,1759722649583,-151.0,0.00016438,2]
[389570600,1759722649593,-151.0,0.00016438,2]
[389570602,1759722649602,-194.872154,0.00016438,2]
[389570604,1759722649612,-151.0,0.00016438,2]
[389570606,1759722649622,-151.0,0.00016438,2]
[389570607,1759722649631,-151.0,0.00016438,2]
[389570610,1759722649642,-151.0,0.00016438,2]
[389570612,1759722649652,-167.274492,0.00016438,2]
[389570614,1759722649660,-1139.15,0.00016438,2]
[389570615,1759722649670,-333.051004,0.00016438,2]
[389570618,1759722649679,-333.051004,0.00016438,2]
[389570620,1759722649689,-333.051004,0.00016438,2]
[389570622,1759722649699,-500.0,0.00016438,2]
[389570624,1759722649708,-333.051004,0.00016438,2]
[389570626,1759722649717,-333.051004,0.00016438,2]
[389570628,1759722649726,-333.051004,0.00016438,2]
[389570630,1759722649735,-151.0,0.00016438,2]
[389570632,1759722649744,-333.051004,0.00016438,2]
[389570634,1759722649755,-151.0,0.00016438,2]
[389570636,1759722649765,-333.051004,0.00016438,2]
[389570638,1759722649776,-151.0,0.00016438,2]
[389570640,1759722649786,-151.0,0.00016438,2]
[389570642,1759722649796,-333.051004,0.00016438,2]
[389570644,1759722649805,-151.0,0.00016438,2]
[389570646,1759722649814,-151.0,0.00016438,2]
[389570648,1759722649823,-333.051004,0.00016438,2]
[389570650,1759722649833,-151.0,0.00016438,2]
[389570652,1759722649842,-151.0,0.00016438,2]
[389570654,1759722649851,-333.051004,0.00016438,2]
[389570656,1759722649860,-151.0,0.00016438,2]
[389570658,1759722649870,-333.051004,0.00016438,2]
[389570660,1759722649879,-151.0,0.00016438,2]
[389570662,1759722649888,-151.0,0.00016438,2]
[389570664,1759722649898,-333.051004,0.00016438,2]
[389570666,1759722649907,-157.814713,0.00016438,2]
[389570668,1759722649916,-151.0,0.00016438,2]
[389570670,1759722649925,-333.051004,0.00016438,2]
[389570672,1759722649936,-159.909664,0.00016438,2]
[389570674,1759722649945,-333.051004,0.00016438,2]
[389570676,1759722649954,-333.051004,0.00016438,2]
[389570678,1759722649963,-333.051004,0.00016438,2]
[389570680,1759722649972,-333.051004,0.00016438,2]
[389570682,1759722649981,-333.051004,0.00016438,2]
[389570684,1759722649993,-333.051012,0.00016438,2]
[389570686,1759722650002,-400.296442,0.00016438,2]
[389570688,1759722650011,-400.296442,0.00016438,2]
[389570690,1759722650020,-151.0,0.00016438,2]
[389570692,1759722650030,-400.296442,0.00016438,2]
[389570694,1759722650039,-151.0,0.00016438,2]
[389570696,1759722650049,-400.296442,0.00016438,2]
[389570698,1759722650058,-151.0,0.00016438,2]
[389570700,1759722650068,-400.296442,0.00016438,2]
[389570701,1759722650077,-151.0,0.00016438,2]
[389570703,1759722650086,-400.296442,0.00016438,2]
[389570705,1759722650095,-151.0,0.00016438,2]
[389570707,1759722650103,-400.296442,0.00016438,2]
[389570709,1759722650113,-151.0,0.00016438,2]
[389570711,1759722650122,-500.0,0.00016438,2]
[389570713,1759722650131,-400.296442,0.00016438,2]
[389570715,1759722650140,-151.0,0.00016438,2]
[389570717,1759722650149,-400.296442,0.00016438,2]
[389570719,1759722650158,-400.296442,0.00016438,2]
[389570721,1759722650167,-151.0,0.00016438,2]
[389570723,1759722650176,-400.296442,0.00016438,2]
[389570725,1759722650185,-400.296442,0.00016438,2]
[389570727,1759722650194,-400.296442,0.00016438,2]
[389570729,1759722650204,-400.296442,0.00016438,2]
[389570732,1759722650213,-500.0,0.00016438,2]
[389570734,1759722650223,-400.296442,0.00016438,2]
[389570735,1759722650232,-400.296442,0.00016438,2]
[389570737,1759722650241,-400.296442,0.00016438,2]
[389570740,1759722650250,-548.21,0.00016438,2]
[389570742,1759722650260,-400.296442,0.00016438,2]
[389570744,1759722650269,-400.296442,0.00016438,2]
[389570746,1759722650277,-400.296443,0.00016438,2]
[389570748,1759722650286,-512.109312,0.00016438,2]
[389570750,1759722650295,-512.109312,0.00016438,2]
[389570752,1759722650304,-512.109312,0.00016438,2]
[389570754,1759722650313,-595.23,0.00016438,2]
[389570756,1759722650323,-512.109312,0.00016438,2]
[389570758,1759722650332,-512.109312,0.00016438,2]
[389570760,1759722650340,-512.109312,0.00016438,2]
[389570762,1759722650350,-512.109312,0.00016438,2]
[389570764,1759722650360,-512.109312,0.00016438,2]
[389570766,1759722650369,-512.109312,0.00016438,2]
[389570767,1759722650379,-512.109312,0.00016438,2]
[389570769,1759722650388,-512.109312,0.00016438,2]
[389570771,1759722650398,-512.109312,0.00016438,2]
[389570773,1759722650407,-512.109312,0.00016438,2]
[389570775,1759722650417,-512.109312,0.00016438,2]
[389570777,1759722650426,-512.109312,0.00016438,2]
[389570779,1759722650435,-425.99174734,0.00016438,2]
[389570781,1759722650444,-512.109312,0.00016438,2]
[389570783,1759722650453,-512.109312,0.00016438,2]
[389570785,1759722650462,-257.012787,0.00016438,2]
[389570787,1759722650470,-512.109312,0.00016438,2]
[389570789,1759722650479,-257.012787,0.00016438,2]
[389570791,1759722650488,-512.109312,0.00016438,2]
[389570793,1759722650497,-257.012787,0.00016438,2]
[389570795,1759722650505,-512.10931,0.00016438,2]
[389570797,1759722650514,-257.012787,0.00016438,2]
[389570799,1759722650523,-257.012787,0.00016438,2]
[389570801,1759722650532,-257.012787,0.00016438,2]
[389570803,1759722650543,-257.012787,0.00016438,2]
[389570805,1759722650552,-257.012787,0.00016438,2]
[389570807,1759722650561,-257.012787,0.00016438,2]
[389570809,1759722650570,-257.012787,0.00016438,2]
[389570811,1759722650580,-1237.0,0.00016438,2]
[389570813,1759722650589,-3247.6,0.00016438,2]
[389570815,1759722650598,-257.012787,0.00016438,2]
[389570817,1759722650607,-257.012787,0.00016438,2]
[389570819,1759722650617,-257.012787,0.00016438,2]
[389570821,1759722650626,-257.012787,0.00016438,2]
[389570823,1759722650635,-257.012787,0.00016438,2]
[389570825,1759722650646,-257.012787,0.00016438,2]
[389570827,1759722650656,-257.012787,0.00016438,2]
[389570829,1759722650665,-257.012787,0.00016438,2]
[389570831,1759722650675,-257.012787,0.00016438,2]
[389570833,1759722650684,-257.012795,0.00016438,2]
[389570835,1759722650694,-500.0,0.00016438,2]
[389570837,1759722650703,-500.0,0.00016438,2]
[389570839,1759722650712,-151.0,0.00016438,2]
[389570841,1759722650721,-500.0,0.00016438,2]
[389570843,1759722650731,-151.0,0.00016438,2]
[389570845,1759722650740,-500.0,0.00016438,2]
[389570847,1759722650750,-500.0,0.00016438,2]
[389570849,1759722650759,-500.0,0.00016438,2]
[389570851,1759722650769,-4118.02,0.00016438,2]
[389570853,1759722650778,-151.0,0.00016438,2]
[389570855,1759722650788,-151.0,0.00016438,2]
[389570857,1759722650798,-153.903544,0.00016438,2]
[389570860,1759722650808,-1000.0,0.00016438,2]
[389570862,1759722650818,-500.0,0.00016438,2]
[389570863,1759722650827,-1000.0,0.00016438,2]
[389570865,1759722650836,-1000.0,0.00016438,2]
[389570867,1759722650846,-1000.0,0.00016438,2]
[389570869,1759722650856,-500.0,0.00016438,2]
[389570871,1759722650866,-1000.0,0.00016438,2]
[389570873,1759722650875,-1007.251739,0.00016438,2]
[389570876,1759722650886,-8168.33,0.00016438,2]
[389570878,1759722650896,-268.30997419,0.00016438,2]
[389570880,1759722650906,-500.0,0.00016438,2]
[389570882,1759722650916,-151.301159,0.00016438,2]
[389570884,1759722650925,-2556.97,0.00016438,2]
[389570886,1759722650934,-500.0,0.00016438,2]
[389570888,1759722650943,-500.0,0.00016438,2]
[389570890,1759722650953,-274.74571178,0.00016438,2]
[389570891,1759722650962,-500.0,0.00016438,2]
[389570894,1759722650972,-500.0,0.00016438,2]
[389570896,1759722650985,-895.57,0.00016438,2]
[389570898,1759722650996,-930.33,0.00016438,2]
[389570900,1759722651005,-557.77,0.00016438,2]
[389570902,1759722651015,-503.80071278,0.00016438,2]
[389570904,1759722651025,-500.0,0.00016438,2]
[389570906,1759722651035,-500.0,0.00016438,2]
[389570908,1759722651044,-1000.0,0.00016438,2]
[389570910,1759722651054,-1500.0,0.00016438,2]
[389570911,1759722651064,-151.0,0.00016438,2]
[389570914,1759722651073,-151.0,0.00016438,2]
[389570916,1759722651083,-151.0,0.00016438,2]
[389570918,1759722651092,-151.0,0.00016438,2]
[389570920,1759722651101,-151.0,0.00016438,2]
[389570922,1759722651111,-151.0,0.00016438,2]
[389570924,1759722651121,-186.481256,0.00016438,2]
[389570926,1759722651130,-151.0,0.00016438,2]
[389570928,1759722651140,-151.0,0.00016438,2]
[389570930,1759722651149,-151.0,0.00016438,2]
[389570932,1759722651159,-151.0,0.00016438,2]
[389570934,1759722651168,-151.0,0.00016438,2]
[389570936,1759722651177,-151.0,0.00016438,2]
[389570938,1759722651186,-151.0,0.00016438,2]
[389570940,1759722651195,-151.0,0.00016438,2]
[389570942,1759722651204,-151.0,0.00016438,2]
[389570944,1759722651214,-151.0,0.00016438,2]
[389570946,1759722651223,-151.0,0.00016438,2]
[389570948,1759722651233,-151.0,0.00016438,2]
[389570950,1759722651242,-151.0,0.00016438,2]
[389570952,1759722651253,-151.0,0.00016438,2]
[389570954,1759722651262,-151.0,0.00016438,2]
[389570956,1759722651271,-151.0,0.00016438,2]
[389570958,1759722651280,-151.0,0.00016438,2]
[389570960,1759722651290,-283.959934,0.00016438,2]
[389570962,1759722651299,-151.0,0.00016444,2]
[389570964,1759722651310,-151.0,0.00016444,2]
[389570966,1759722651319,-292.272124,0.00016444,2]
[389570968,1759722651328,-151.0,0.00016444,2]
[389570970,1759722651339,-151.0,0.00016444,2]
[389570972,1759722651348,-165.13805503,0.00016473,2]
[389570974,1759722651357,-500.0,0.00016473,2]
[389570976,1759722651367,-501.24197452,0.00016473,2]
[389570978,1759722651376,-500.35889977,0.00016473,2]
[389570980,1759722651385,-500.0,0.00016473,2]
[389570982,1759722651395,-500.0,0.00016473,2]
[389570984,1759722651404,-374.95130688,0.00016473,2]
[389570986,1759722651414,-500.3459826,0.00016473,2]
[389570988,1759722651423,-177.05021986,0.00016473,2]
[389570990,1759722651433,-214.96446922,0.00016473,2]
[389570992,1759722651442,-500.0,0.00016473,2]
[389570994,1759722651451,-500.0,0.00016473,2]
[389570996,1759722651461,-500.47474524,0.00016473,2]
[389570998,1759722651471,-500.0,0.00016473,2]
[389571000,1759722651481,-500.12992458,0.00016473,2]
[389571002,1759722651491,-500.0,0.00016473,2]
[389571004,1759722651500,-501.08881674,0.00016473,2]
[389571006,1759722651510,-500.93884573,0.00016473,2]
[389571008,1759722651519,-500.0,0.00016473,2]
[389571010,1759722651529,-500.0,0.00016473,2]
[389571012,1759722651538,-500.18686736,0.00016473,2]
[389571014,1759722651547,-500.0,0.00016473,2]
[389571016,1759722651557,-500.38614577,0.00016473,2]
[389571018,1759722651566,-500.0,0.00016473,2]
[389571020,1759722651575,-452.96937508,0.00016473,2]
[389571022,1759722651585,-500.0,0.00016473,2]
[389571024,1759722651594,-200.18078479,0.00016473,2]
[389571026,1759722651603,-200.30095249,0.00016473,2]
[389571029,1759722651612,-500.0,0.00016473,2]
[389571031,1759722651622,-201.17315359,0.00016473,2]
[389571033,1759722651631,-500.88825014,0.00016473,2]
[389571034,1759722651641,-500.0,0.00016473,2]
[389571036,1759722651650,-500.45597933,0.00016473,2]
[389571038,1759722651661,-500.0,0.00016473,2]
[389571040,1759722651670,-261.35931636,0.00016473,2]
[389571042,1759722651679,-500.0,0.00016473,2]
[389571044,1759722651689,-500.0,0.00016473,2]
[389571046,1759722651698,-500.90171502,0.00016473,2]
[389571048,1759722651707,-500.0,0.00016473,2]
[389571051,1759722651717,-265.24273249,0.00016473,2]
[389571053,1759722651727,-500.50182678,0.00016473,2]
[389571055,1759722651736,-500.0,0.00016473,2]
[389571057,1759722651746,-438.29029447,0.00016473,2]
[389571059,1759722651755,-500.0,0.00016473,2]
[389571060,1759722651764,-500.0,0.00016473,2]
[389571062,1759722651774,-159.618289,0.00016473,2]
[389571064,1759722651783,-500.0,0.00016473,2]
[389571066,1759722651793,-500.81577523,0.00016473,2]
[389571068,1759722651803,-500.5796251,0.00016473,2]
[389571070,1759722651812,-301.4941176,0.00016473,2]
[389571072,1759722651822,-484.29988071,0.00016473,2]
[389571074,1759722651831,-500.0,0.00016473,2]
[389571076,1759722651841,-500.0,0.00016473,2]
[389571078,1759722651851,-500.22290047,0.00016473,2]
[389571080,1759722651861,-500.0,0.00016473,2]
[389571083,1759722651873,-500.0,0.00016473,2]
[389571084,1759722651882,-506.55820238,0.00016473,2]
[389571087,1759722651892,-500.0,0.00016473,2]
[389571089,1759722651902,-500.0,0.00016473,2]
[389571091,1759722651911,-500.0,0.00016473,2]
[389571093,1759722651920,-500.0,0.00016473,2]
[389571095,1759722651930,-500.0,0.00016473,2]
[389571096,1759722651939,-501.03087857,0.00016473,2]
[389571099,1759722651949,-500.0,0.00016473,2]
[389571101,1759722651959,-374.38840679,0.00016473,2]
[389571102,1759722651969,-500.0,0.00016473,2]
[389571103,1759722651978,-500.0,0.00016473,2]
[389571104,1759722651992,-500.0,0.00016473,2]
[389571105,1759722652002,-9201.46012153,0.00016473,2]
[389571106,1759722652011,-307.9736166,0.000166,2]
[389571107,1759722652021,-1206.75455116,0.00016646,2]
[389571108,1759722652031,-168.0,0.00016696,2]
[389571109,1759722652040,-168.0,0.000167,2]
[389571110,1759722652050,-306.0,0.000167,2]
[389571111,1759722652060,-189.5044535,0.000167,2]
[389571112,1759722652069,-189.5044535,0.000167,2]
[389571113,1759722652078,-348.0,0.000167,2]
[389571114,1759722652088,-451.0,0.00016711,2]
[389571115,1759722652097,-500.0,0.00016712,2]
[389571116,1759722652106,-500.0,0.00016712,2]
[389571117,1759722652115,-151.0,0.00016712,2]
[389571118,1759722652125,-500.0,0.00016712,2]
[389571119,1759722652134,-151.0,0.00016712,2]
[389571120,1759722652143,-198.67272043,0.00016712,2]
[389571121,1759722652152,-610.0316428,0.00016712,2]
[389571122,1759722652161,-500.0,0.00016712,2]
[389571123,1759722652171,-198.0,0.00016712,2]
[389571125,1759722652187,-151.0,0.00016712,2]
[389571126,1759722652200,-1237.0,0.00016712,2]
[389571128,1759722652211,-151.0,0.00016712,2]
[389571130,1759722652221,-500.0,0.00016712,2]
[389571132,1759722652231,-371.78427549,0.00016712,2]
[389571134,1759722652240,-538.09,0.00016712,2]
[389571136,1759722652250,-500.0,0.00016712,2]
[389571138,1759722652259,-500.0,0.00016712,2]
[389571141,1759722652269,-500.0,0.00016712,2]
[389571143,1759722652278,-500.0,0.00016712,2]
[389571145,1759722652289,-500.0,0.00016712,2]
[389571147,1759722652298,-483.72807827,0.00016712,2]
[389571149,1759722652309,-500.0,0.00016712,2]
[389571151,1759722652318,-504.044913,0.00016712,2]
[389571153,1759722652329,-500.0,0.00016712,2]
[389571155,1759722652339,-500.0,0.00016712,2]
[389571157,1759722652349,-178.13544214,0.00016712,2]
[389571159,1759722652359,-151.0,0.00016712,2]
[389571162,1759722652371,-500.0,0.00016712,2]
[389571164,1759722652382,-500.0,0.00016712,2]
[389571166,1759722652392,-151.0,0.00016712,2]
[389571168,1759722652402,-151.0,0.00016712,2]
[389571170,1759722652413,-260.17203723,0.00016712,2]
[389571172,1759722652423,-151.0,0.00016712,2]
[389571174,1759722652432,-260.32473569,0.00016712,2]
[389571176,1759722652442,-500.0,0.00016712,2]
[389571178,1759722652452,-151.0,0.00016712,2]
[389571180,1759722652462,-256.47064046,0.00016712,2]
[389571182,1759722652472,-198.86694394,0.00016712,2]
[389571184,1759722652481,-151.38536956,0.00016712,2]
[389571186,1759722652491,-151.0,0.00016712,2]
[389571188,1759722652500,-500.0,0.00016712,2]
[389571190,1759722652510,-503.69383834,0.00016712,2]
[389571193,1759722652520,-166.90873572,0.00016712,2]
[389571195,1759722652530,-500.0,0.00016712,2]
[389571197,1759722652540,-500.0,0.00016712,2]
[389571199,1759722652549,-500.0,0.00016712,2]
[389571201,1759722652559,-500.0,0.00016712,2]
[389571203,1759722652568,-500.0,0.00016712,2]
[389571205,1759722652578,-500.0,0.00016712,2]
[389571207,1759722652587,-500.0,0.00016712,2]
[389571209,1759722652597,-500.0,0.00016712,2]
[389571211,1759722652606,-527.28,0.00016712,2]
[389571213,1759722652615,-500.0,0.00016712,2]
[389571215,1759722652625,-500.0,0.00016712,2]
[389571217,1759722652634,-500.0,0.00016712,2]
[389571219,1759722652644,-932.03,0.00016712,2]
[389571221,1759722652653,-507.35187427,0.00016712,2]
[389571223,1759722652662,-500.0,0.00016712,2]
[389571225,1759722652672,-1413.76,0.00016712,2]
[389571227,1759722652681,-500.0,0.00016712,2]
[389571229,1759722652691,-500.0,0.00016712,2]
[389571231,1759722652700,-546.79,0.00016712,2]
[389571233,1759722652710,-797.55,0.00016712,2]
[389571235,1759722652719,-500.0,0.00016712,2]
[389571237,1759722652729,-503.66704904,0.00016712,2]
[389571239,1759722652739,-500.0,0.00016712,2]
[389571241,1759722652748,-504.17151892,0.00016712,2]
[389571243,1759722652758,-500.0,0.00016712,2]
[389571245,1759722652768,-500.0,0.00016712,2]
[389571248,1759722652779,-500.0,0.00016712,2]
[389571250,1759722652789,-500.0,0.00016712,2]
[389571252,1759722652801,-500.0,0.00016712,2]
[389571254,1759722652811,-500.0,0.00016712,2]
[389571274,1759722652992,-435.36786206,0.00016712,2]
[389571276,1759722653002,-500.0,0.00016712,2]
[389571278,1759722653011,-1385.56,0.00016712,2]
[389571280,1759722653021,-500.0,0.00016712,2]
[389571282,1759722653032,-500.0,0.00016712,2]
[389571284,1759722653041,-504.68248133,0.00016712,2]
[389571286,1759722653052,-516.28585762,0.00016712,2]
[389571288,1759722653063,-483.01008837,0.00016712,2]
[389571290,1759722653073,-503.34697002,0.00016712,2]
[389571292,1759722653082,-500.0,0.00016712,2]
[389571294,1759722653091,-500.0,0.00016712,2]
[389571296,1759722653101,-500.0,0.00016712,2]
[389571298,1759722653110,-662.57,0.00016712,2]
[389571300,1759722653120,-500.0,0.00016712,2]
[389571302,1759722653129,-500.0,0.00016712,2]
[389571304,1759722653138,-500.0,0.00016712,2]
[389571306,1759722653147,-511.22836969,0.00016712,2]
[389571308,1759722653157,-500.0,0.00016712,2]
[389571310,1759722653166,-502.89,0.00016712,2]
[389571312,1759722653176,-500.0,0.00016712,2]
[389571314,1759722653185,-504.47572479,0.00016712,2]
[389571316,1759722653194,-500.0,0.00016712,2]
[389571318,1759722653204,-500.0,0.00016712,2]
[389571320,1759722653213,-500.0,0.00016712,2]
[389571322,1759722653222,-500.0,0.00016712,2]
[389571323,1759722653231,-500.0,0.00016712,2]
[389571325,1759722653240,-500.0,0.00016712,2]
[389571327,1759722653250,-500.0,0.00016712,2]
[389571329,1759722653259,-855.99,0.00016712,2]
[389571331,1759722653268,-689.18,0.00016712,2]
[389571333,1759722653277,-796.84,0.00016712,2]
[389571335,1759722653287,-186.4969072,0.00016712,2]
[389571337,1759722653296,-585.26,0.00016712,2]
[389571339,1759722653305,-500.0,0.00016712,2]
[389571341,1759722653315,-500.0,0.00016712,2]
[389571343,1759722653324,-500.0,0.00016712,2]
[389571345,1759722653333,-500.0,0.00016712,2]
[389571347,1759722653342,-500.0,0.00016712,2]
[389571349,1759722653351,-505.87824904,0.00016712,2]
[389571351,1759722653361,-500.0,0.00016712,2]
[389571353,1759722653370,-860.36,0.00016712,2]
[389571355,1759722653379,-500.0,0.00016712,2]
[389571357,1759722653389,-500.0,0.00016712,2]
[389571358,1759722653398,-650.99,0.00016712,2]
[389571360,1759722653408,-1048.11,0.00016712,2]
[389571363,1759722653418,-500.0,0.00016712,2]
[389571364,1759722653427,-500.0,0.00016712,2]
[389571366,1759722653436,-500.0,0.00016712,2]
[389571368,1759722653445,-1251.3,0.00016712,2]
[389571370,1759722653454,-516.43,0.00016712,2]
[389571372,1759722653464,-484.81992879,0.00016712,2]
[389571374,1759722653474,-500.0,0.00016712,2]
[389571376,1759722653483,-537.01846197,0.00016712,2]
[389571378,1759722653492,-500.0,0.00016712,2]
[389571380,1759722653502,-500.0,0.00016712,2]
[389571382,1759722653511,-500.0,0.00016712,2]
[389571384,1759722653519,-500.0,0.00016712,2]
[389571386,1759722653528,-506.73271605,0.00016712,2]
[389571388,1759722653537,-522.15,0.00016712,2]
[389571390,1759722653546,-500.0,0.00016712,2]
[389571392,1759722653555,-500.0,0.00016712,2]
[389571394,1759722653565,-500.0,0.00016712,2]
[389571396,1759722653574,-500.0,0.00016712,2]
[389571398,1759722653583,-500.0,0.00016712,2]
[389571400,1759722653593,-500.0,0.00016712,2]
[389571402,1759722653603,-500.0,0.00016712,2]
[389571404,1759722653612,-500.0,0.00016712,2]
[389571406,1759722653621,-349.19099143,0.00016712,2]
[389571408,1759722653631,-500.0,0.00016712,2]
[389571410,1759722653640,-1105.41,0.00016712,2]
[389571411,1759722653649,-500.0,0.00016712,2]
[389571413,1759722653659,-500.0,0.00016712,2]
[389571415,1759722653669,-500.0,0.00016712,2]
[389571417,1759722653678,-4495.21,0.00016712,2]
[389571419,1759722653688,-1561.19,0.00016712,2]
[389571421,1759722653697,-500.0,0.00016712,2]
[389571423,1759722653707,-1948.22,0.00016712,2]
[389571425,1759722653716,-500.0,0.00016712,2]
[389571427,1759722653726,-500.0,0.00016712,2]
[389571429,1759722653736,-649.25,0.00016712,2]
[389571431,1759722653746,-1299.44,0.00016712,2]
[389571433,1759722653755,-641.91,0.00016712,2]
[389571435,1759722653765,-500.0,0.00016712,2]
[389571437,1759722653775,-500.0,0.00016712,2]
[389571439,1759722653785,-500.0,0.00016712,2]
[389571441,1759722653795,-951.87,0.00016712,2]
[389571443,1759722653806,-890.87,0.00016712,2]
[389571445,1759722653817,-500.0,0.00016712,2]
[389571447,1759722653826,-500.0,0.00016712,2]
[389571449,1759722653836,-752.52,0.00016712,2]
[389571451,1759722653846,-1349.17,0.00016712,2]
[389571453,1759722653855,-692.93,0.00016712,2]
[389571455,1759722653865,-500.0,0.00016712,2]
[389571457,1759722653874,-500.0,0.00016712,2]
[389571459,1759722653884,-592.9,0.00016712,2]
[389571461,1759722653894,-640.54,0.00016712,2]
[389571463,1759722653904,-891.52,0.00016712,2]
[389571465,1759722653913,-8276.8,0.00016712,2]
[389571467,1759722653923,-500.0,0.00016712,2]
[389571469,1759722653932,-500.0,0.00016712,2]
[389571471,1759722653941,-500.0,0.00016712,2]
[389571473,1759722653951,-2152.63,0.00016712,2]
[389571475,1759722653960,-500.0,0.00016712,2]
[389571477,1759722653970,-500.0,0.00016712,2]
[389571479,1759722653980,-3628.48,0.00016712,2]
[389571481,1759722653994,-500.0,0.00016712,2]
[389571483,1759722654003,-881.21,0.00016712,2]
[389571485,1759722654012,-1258.05,0.00016712,2]
[389571487,1759722654022,-617.7,0.00016712,2]
[389571488,1759722654032,-537.04019974,0.00016712,2]
[389571490,1759722654042,-500.0,0.00016712,2]
[389571492,1759722654051,-4069.19,0.00016712,2]
[389571494,1759722654061,-500.0,0.00016712,2]
[389571496,1759722654072,-1399.28,0.00016712,2]
[389571498,1759722654081,-500.0,0.00016712,2]
[389571500,1759722654090,-2961.35,0.00016712,2]